Cogmind - Beta 17 @@@ ROGUE MODE // 2026.07.27 @ 18:04:27 Player: Afro Result: Self-destructed Performance ------------- Evolutions (1) 500 Regions Visited (3) 600 Robots Destroyed (42) 210 Value Destroyed (1008) 1008 Prototype IDs (3) 60 Alien Tech Used (0) 0 Bonus (0) 0 TOTAL SCORE: 2378 Bonus ------- None Cogmind --------- Core Integrity 300/400 Matter 300/300 Energy 265/265 System Corruption 0% Temperature Cool (0) Movement Walking (190) Ox1 Location -9/Mines Parts ------- > --- POWER (1) -------- Improved Ion Engine > --- PROPULSION (3) --- Aluminum Leg Aluminum Leg Aluminum Leg > --- UTILITY (2) ------ Large Storage Unit Light Armor Plating > --- WEAPON (3) ------- Improved EM Shotgun Heavy Assault Rifle Shotgun > --- INVENTORY (15) --- Nuclear Core Nuclear Core Carbon-fiber Leg Carbon-fiber Leg Carbon-fiber Leg Carbon-fiber Leg Cooling System Trap Scanner Visual Processing Unit ECM Suite High-powered Tractor Beam Heavy Assault Rifle Heavy Assault Rifle Mini Grenade Launcher Peak State ------------ > --- POWER ------------ Nuclear Core > --- PROPULSION ------- Aluminum Leg Aluminum Leg Aluminum Leg > --- UTILITY ---------- Large Storage Unit High-powered Tractor Beam > --- WEAPON ----------- Improved EM Shotgun Heavy Assault Rifle Shotgun > --- INVENTORY -------- Nuclear Core Nuclear Core Carbon-fiber Leg Carbon-fiber Leg Carbon-fiber Leg Carbon-fiber Leg Cooling System Trap Scanner Visual Processing Unit ECM Suite Improved EM Shotgun Heavy Assault Rifle Mini Grenade Launcher [Rating: 20] Favorites ----------- Power Nuclear Core Engine Ion Engine Power Core Nuclear Core Propulsion Aluminum Leg Treads Light Treads Leg Aluminum Leg Utility Large Storage Unit Device High-powered Tractor Beam Storage Large Storage Unit Protection Light Armor Plating Weapon Shotgun Energy Gun Improved EM Shotgun Ballistic Gun Shotgun Build | -11 -10 -9 -9 ------- Run | Yrd Mat Mat Min Slots Evolved 2 | . . 2 . Power . | . . . . Propulsion 1 | . . 1 . Utility . | . . . . Weapon 1 | . . 1 . Parts Attached 36 | 5 4 27 . Power 4 | 1 . 3 . Engine 2 | 1 . 1 . Core 2 | . . 2 . Reactor . | . . . . Propulsion 12 | 2 . 10 . Treads 2 | 2 . . . Leg 10 | . . 10 . Wheel . | . . . . Hover . | . . . . Flight . | . . . . Utility 7 | . 3 4 . Device 2 | . . 2 . Storage 2 | . 2 . . Processor . | . . . . Hackware . | . . . . Protection 3 | . 1 2 . Artifact . | . . . . Weapon 13 | 2 1 10 . Energy Gun 2 | . . 2 . Energy Cannon . | . . . . Ballistic Gun 11 | 2 1 8 . Ballistic Cannon . | . . . . Launcher . | . . . . Special Weapon . | . . . . Impact Weapon . | . . . . Slashing Weapon . | . . . . Piercing Weapon . | . . . . Special Melee Weapon . | . . . . Unidentified Prototypes 1 | . . 1 . Parts Lost 8 | . 3 5 . Power 1 | . . 1 . Propulsion 1 | . . 1 . Utility 2 | . 1 1 . Weapon 4 | . 2 2 . Highest Loss Streak 2 | . 1 2 . To Critical Strikes . | . . . . Average Backups 12 | 2 4 14 . Power 2 | . 1 2 . Propulsion 4 | 1 2 4 . Utility 2 | . . 2 . Weapon 3 | . . 3 . Tool/Special . | . . . . Unused Backups 14 | . . 3 11 Power 3 | . . 1 2 Propulsion 4 | . . . 4 Utility 3 | . . . 3 Weapon 4 | . . 2 2 Tool/Special . | . . . . Average Slot Usage (%) 94 | . 87 95 . Engine 3 | . 14 1 . Core 7 | . . 9 . Treads 6 | . 28 1 . Leg 25 | . . 30 . Device 2 | . . 2 . Storage 11 | . 13 11 . Protection 6 | . 5 6 . Energy Gun 2 | . . 2 . Ballistic Gun 28 | . 24 29 . Peak Build Rating 20 | 5 7 20 . Average Rating 14 | 4 6 16 . On Entrance 6 | . 5 5 17 Avg Prop Armor Cover (%) . | . . . . Naked Turns . | . . . . Heaviest Build 39 | 8 28 39 . Greatest Support 40 | 40 40 40 . Greatest Overweight (x) 1 | . . 1 . Average Overweight (x) . | . . . . Largest Inventory Capacity 15 | 5 15 15 . Average Capacity 13 | 5 10 15 . Most Carried 15 | 3 6 15 . Average Carried 12 | 2 4 14 . Final Capacity 15 | 5 15 15 15 Final Carried 14 | 3 6 14 14 Class Distribution -------------------- 40% | Tank 28% | Gunner 23% | Mutant 6% | Scavenger-Tank Dominant Class ---------------- Mutant | -10/Materials Tank | -9/Materials Tank | -9/Mines Resources | -11 -10 -9 -9 ----------- Run | Yrd Mat Mat Min Matter Collected 1372 | 240 187 945 . Remotely 341 | . . 341 . Salvage Created 1362 | . 360 1002 . Parts 87 | . 25 62 . Haulers Intercepted 2 | . . 2 . Recyclers Shooed 3 | . 1 2 . Parts Field Recycled . | . . . . Retrieved Matter . | . . . . Parts Self-Destructed . | . . . . Prevented . | . . . . Parts Restored . | . . . . Kills | -11 -10 -9 -9 ------- Run | Yrd Mat Mat Min Combat Hostiles Destroyed 36 | . 11 25 . Guns 36 | . 11 25 . Classes Destroyed 7 | . 3 4 . Hauler 2 | . . 2 . Recycler 2 | . 1 1 . Watcher 2 | . . 2 . Swarmer 15 | . 6 9 . Grunt 15 | . 5 10 . Brawler 1 | . . 1 . Sentry 5 | . . 5 . Best Kill Streak 5 | . 5 4 . Combat Bots Only 5 | . 5 4 . Max Kills in Single Turn 2 | . 1 2 . Gunslinging 1 | . . 1 . Exploded . | . . . . Melee . | . . . . Uniques/NPCs Destroyed . | . . . . Combat | -11 -10 -9 -9 -------- Run | Yrd Mat Mat Min Hostile Shots Fired 264 | . 74 190 . Missed 64 | . 10 54 . Hits 200 | . 64 136 . Melee 3 | . . 3 . Projectile 197 | . 64 133 . Critical Strikes 6 | . 2 4 . Damage Taken 2014 | . 644 1370 . Core 223 | . 123 100 . Absorbed by Shields . | . . . . Core Remaining (%) 75 | 100 50 . . Volleys Fired 103 | . 39 64 . Largest 3 | . 2 3 . Hottest 91 | . 40 91 . Shots Fired 261 | . 72 189 . Gun 261 | . 72 189 . Cannon . | . . . . Launcher . | . . . . Special . | . . . . Kinetic 252 | . 72 180 . Thermal . | . . . . Explosive . | . . . . Electromagnetic 9 | . . 9 . Robot Hit Streak 11 | . 7 11 . Robot Miss Streak 5 | . 3 5 . Penetration Max . | . . . . Secondary Targets 2 | . . 2 . Max Gunslinging Chain 1 | . . 1 . Shots Hit Robots 170 | . 41 129 . Core Hits 82 | . 21 61 . Critical Kills 1 | . . 1 . Critical Parts Destroyed 1 | . . 1 . Critical Strikes 2 | . . 2 . Destroy 2 | . . 2 . Melee Attacks . | . . . . Impact . | . . . . Slashing . | . . . . Piercing . | . . . . Sneak Attacks . | . . . . Combat Hostiles . | . . . . Follow-up Attacks . | . . . . Damage Inflicted 2430 | . 438 1992 . Guns 2352 | . 438 1914 . Cannons . | . . . . Explosions . | . . . . Melee . | . . . . Ramming 78 | . . 78 . Kinetic 2229 | . 438 1791 . Thermal . | . . . . Explosive . | . . . . Electromagnetic 123 | . . 123 . Impact . | . . . . Slashing . | . . . . Piercing . | . . . . Highest Corruption 2 | . 2 . . Average Corruption 1 | . 1 . . Corruption Purged . | . . . . Corruption Blocked . | . . . . Overload Shots . | . . . . Overflow Damage . | . . . . Projectiles . | . . . . Explosions . | . . . . Melee . | . . . . Knockbacks 2 | . . 2 . Impact 2 | . . 2 . Kinetic . | . . . . Secondary . | . . . . Self-Inflicted Damage . | . . . . Shots . | . . . . Rammed . | . . . . Targets Rammed 23 | . . 23 . Kicked 23 | . . 23 . Crushed . | . . . . Highest Temperature 381 | . 12 381 . Average Temperature 50 | . 6 57 . Received Heat Transfer 480 | . 219 261 . Effects 1 | . . 1 . Energy Bleed 1 | . . 1 . Siege Activations . | . . . . Martial Activations . | . . . . Shielding Activations . | . . . . Robots Disrupted . | . . . . Combat Hostiles . | . . . . Robots Corrupted . | . . . . Combat Hostiles . | . . . . Parts Fried . | . . . . Impact Corruptions . | . . . . Robots Melted . | . . . . Combat Hostiles . | . . . . Parts Melted . | . . . . Heat Transferred . | . . . . Parts Sabotaged . | . . . . Parts Stolen . | . . . . Parts Stripped . | . . . . Power Chain Reactions . | . . . . Alert | -11 -10 -9 -9 ------- Run | Yrd Mat Mat Min Maximum Alert Level 1 | . . 1 . Low Security (%) 71 | 100 100 64 . Level 1 28 | . . 35 . Level 2 . | . . . . Level 3 . | . . . . Level 4 . | . . . . Level 5 . | . . . . High Security . | . . . . Max Security . | . . . . Peak Influence 370 | . 137 370 . Initial 136 | . . 40 136 Average 138 | . 54 160 . Influence Increases 1054 | . 310 744 . Destroy 0b10 Robot/C 720 | . 220 500 . Destroy 0b10 Robot/NC 30 | . 5 25 . Destroy Leader 168 | . 40 128 . Destroy Structure 1 | . . 1 . Partial Spotted 30 | . 30 . . Lose Combat Pursuer 105 | . 15 90 . Influence Decreases 918 | . 213 491 214 Entered New Map 271 | . . 57 214 Time Decay 567 | . 183 384 . Lost Part 80 | . 30 50 . Squads Dispatched 3 | . 1 2 . Investigation . | . . . . Extermination . | . . . . Reinforcement 3 | . 1 2 . Assault . | . . . . Garrison . | . . . . Intercept . | . . . . Searches Triggered . | . . . . Construction Impeded . | . . . . Haulers Reinforced . | . . . . Active Scanning Responses . | . . . . Cargo Convoy Interrupts . | . . . . Stealth | -11 -10 -9 -9 --------- Run | Yrd Mat Mat Min Distress Signals 1 | . 1 . . Communications Jammed . | . . . . Distress Signals . | . . . . Times Spotted 69 | . 15 54 . Peak Tracking Total 7 | . 5 7 . Tactical Retreats 4 | . 1 3 . ECM-based Alert Blocks 1 | . . 1 . Traps | -11 -10 -9 -9 ------- Run | Yrd Mat Mat Min Traps Triggered 3 | . 2 1 . Indirectly . | . . . . Trap Hack Attempts . | . . . . Triggered . | . . . . Disarmed . | . . . . Reprogrammed . | . . . . Reused . | . . . . Traps Extracted . | . . . . Installed . | . . . . Triggered . | . . . . Machines | -11 -10 -9 -9 ---------- Run | Yrd Mat Mat Min Machines Disabled . | . . . . Max in Single Turn . | . . . . Machines Repaired . | . . . . Machines Dismantled . | . . . . Machines Sabotaged . | . . . . Overloaded Fab Kills . | . . . . Hacking | -11 -10 -9 -9 --------- Run | Yrd Mat Mat Min Machines Accessed 2 | . . 2 . Terminals 2 | . . 2 . Fabricators . | . . . . Repair Stations . | . . . . Recycling Units . | . . . . Scanalyzers . | . . . . Garrison Access . | . . . . Total Hacks 2 | . . 2 . Successful 2 | . . 2 . Failed . | . . . . Catastrophic . | . . . . Database Lockouts . | . . . . Manual . | . . . . Terminals 2 | . . 2 . Fabricators . | . . . . Repair Stations . | . . . . Recycling Units . | . . . . Scanalyzers . | . . . . Garrison Access . | . . . . Terminal Hacks 2 | . . 2 . Prototype ID Bank 1 | . . 1 . Emergency Access Points 1 | . . 1 . Fabricator Hacks . | . . . . Repair Station Hacks . | . . . . Recycling Unit Hacks . | . . . . Scanalyzer . | . . . . Garrison Access Hacks . | . . . . Unauthorized Hacks . | . . . . Terminals . | . . . . Fabricators . | . . . . Repair Stations . | . . . . Recycling Units . | . . . . Scanalyzers . | . . . . Garrison Access . | . . . . Data Cores Recovered . | . . . . Used . | . . . . Hacking Detections 1 | . . 1 . Full Trace Events . | . . . . Feedback Events . | . . . . Feedback Blocked . | . . . . Robot Schematics Acquired . | . . . . Robots Built . | . . . . Authchips . | . . . . Time . | . . . . Total Robot Build Rating . | . . . . Part Schematics Acquired . | . . . . Parts Built . | . . . . Authchips . | . . . . Time . | . . . . Total Part Build Rating . | . . . . Part Studies Acquired . | . . . . Parts Repaired . | . . . . Time . | . . . . Parts Recycled . | . . . . Recycled Matter . | . . . . Retrieved Matter . | . . . . Retrieved Components . | . . . . Parts Scanalyzed . | . . . . Part Schematics Acquired . | . . . . Parts Damaged . | . . . . Bothacking | -11 -10 -9 -9 ------------ Run | Yrd Mat Mat Min Used RIF Installer . | . . . . Robots Hacked . | . . . . Non-combat . | . . . . Combat . | . . . . Robot Hacks Applied . | . . . . Relay Couplers Released . | . . . . Fabnet Peak Effective % . | . . . . Robots Rewired . | . . . . Allies Hacked . | . . . . Hacks Repelled . | . . . . Allies | -11 -10 -9 -9 -------- Run | Yrd Mat Mat Min Total Allies . | . . . . Largest Group . | . . . . Highest-Rated Group . | . . . . Highest-Rated Ally . | . . . . Total Orders . | . . . . Ally Attacks . | . . . . Total Damage . | . . . . Kills . | . . . . Allies Corrupted . | . . . . Allies Melted . | . . . . Intel | -11 -10 -9 -9 ------- Run | Yrd Mat Mat Min Active Infowar (turns) 299 | . . 299 . ECM 299 | . . 299 . Robot Analysis Total . | . . . . Derelict Logs Recovered . | . . . . Drone Launches . | . . . . Drone Recoveries . | . . . . Exploration | -11 -10 -9 -9 ------------- Run | Yrd Mat Mat Min Turns Passed 3121 | 99 509 2513 . Spaces Moved 1429 | 57 238 1134 . Core 1 | 1 . . . Treads 392 | 56 238 98 . Legs 1036 | . . 1036 . Wheels . | . . . . Hover . | . . . . Flight . | . . . . Fastest Speed 50 | 50 160 120 . Average Speed 181 | 158 160 187 . Slowest Speed 190 | 160 160 190 . Overloaded Moves . | . . . . Propulsion Burnouts . | . . . . Robots Hopped . | . . . . Potential Cave-ins . | . . . . Cave-ins Triggered . | . . . . Exploration Rate (%) 36 | 4 60 76 5 Regions Visited 3 Branch Regions 1 Pre-discovered Areas . | . . . . Known Exits Taken . | . . . . Unknown Exits Taken 3 | 1 1 1 . Scrap Searched . | . . . . Spaces Dug . | . . . . Terrain Destroyed . | . . . . Melee . | . . . . Projectile . | . . . . AOE . | . . . . Terrain Rammed . | . . . . Walls Destroyed . | . . . . Machines Disabled . | . . . . Actions | -11 -10 -9 -9 --------- Run | Yrd Mat Mat Min Total 1733 | 64 301 1368 . Wait 81 | . 14 67 . Move 1426 | 56 237 1133 . Hop . | . . . . Pick Up 36 | 3 6 27 . Fast Attach 8 | 5 1 2 . Attach 14 | . 3 11 . Detach . | . . . . Swap 19 | . . 19 . Drop 23 | . 1 22 . Fire 103 | . 39 64 . Melee . | . . . . Ram . | . . . . Kick 23 | . . 23 . Crush . | . . . . Escape Stasis . | . . . . Rewire . | . . . . Trap . | . . . . Miscellaneous . | . . . . Route ------- -11/Scrapyard -10/Materials (discovered 2 exits: *Mat / [*Min]) -9/Materials (discovered 4 exits: [*Mat x3] / [*Min]) -9/Mines History --------- Turn | Location | Event 11 | -11/Scrapyard | Discovered new exit (range 16) 100 | -11/Scrapyard | Entered Materials 317 | -10/Materials | Build established: Mutant 341 | -10/Materials | Discovered new exit (range 11) 577 | -10/Materials | Discovered new exit (range 16) 609 | -10/Materials | Entered another Materials area 609 | -9/Materials | Evolved 2 slots: Propulsion x1, Weapon x1 861 | -9/Materials | Discovered new exit (range 15) 998 | -9/Materials | Build established: Tank 1703 | -9/Materials | Discovered new exit (range 15) 1980 | -9/Materials | Build established: Gunner 2224 | -9/Materials | Discovered new exit (range 12) 2834 | -9/Materials | Build established: Tank 2928 | -9/Materials | Discovered new exit (range 16) 3122 | -9/Materials | Entered Mines 3122 | -9/Mines | Self-destructed Last Messages --------------- within the floor. 02939_ Lgt. Armor Plating severed. 02945_ Acquired Lgt. Armor Plating. 02952_ K-01 Serf collects debris. 02952_ U-05 Engineer repairs door. 02957_ K-01 Serf collects debris. 02962_ Kicked O-16 Technician. 02962_ O-16 Technician knocked back. 02969_ K-01 Serf collects debris. 02973_ Kicked U-05 Engineer out of the way. 02996_ Kicked T-07 Excavator out of the way. 02998_ Acquired 4 matter. 03000_ Kicked U-05 Engineer. 03019_ Kicked T-07 Excavator. 03019_ T-07 Excavator knocked back. 03069_ Kicked K-01 Serf out of the way. 03070_ Kicked A-02 Transporter out of the way. LOCATION=UNKNOWN GOAL=ESCAPE Something is scanning the area. Map ----- +----------------------------------------------------+ | | | | | | | | | | | | | | | ?????????????????????????????????????????????????? | | ?????????????????????????????????????????????????? | | ?????????????????????????????????????????????????? | | ?????????????????????????????????????????????????? | | ?????????????????????????????????????????????????? | | ?????????????????????????????????????????????????? | | ??????????????????????##?????????????????????????? | | ??????????????????????# ????????????????????????? | | ??????????????????????# ????????????????????????? | | ??????????????????????# ????????????????????????? | | ??????????????????????# ????????????????????????? | | ??????????????????????# ????????????????????????? | | ????????????#?????????# ????????????????????????? | | ???????????? ???????# ????????????????????????? | | ??????????? ###### ##??????????????????????? | | ?????????????? ##?????????????????????? | | ????????????????? ##????????????????????? | | ????????????????????# ##???????????????????? | | ????????????????????# @ #???????????????????? | | ????????????????????# #?????????????? | | ????????????????????# ### #?????????????? | | ????????????????????# ##??????????????????? | | ????????????????????# ## ##???????????????????? | | ????????????????????# #??###????????????????????? | | ????????????????????# ??????????????????????????? | | ????????????????????# ???????????????????????????? | | ????????????????????# ???????????????????????????? | | ???????????????????? ????????????????????????????? | | ???????????????????? ????????????????????????????? | | ???????????????????#?????????????????????????????? | | ?????????????????????????????????????????????????? | | ?????????????????????????????????????????????????? | | ?????????????????????????????????????????????????? | | ?????????????????????????????????????????????????? | | ?????????????????????????????????????????????????? | | ?????????????????????????????????????????????????? | | ?????????????????????????????????????????????????? | | ?????????????????????????????????????????????????? | | ?????????????????????????????????????????????????? | | ?????????????????????????????????????????????????? | | ?????????????????????????????????????????????????? | | ?????????????????????????????????????????????????? | | ?????????????????????????????????????????????????? | +----------------------------------------------------+ Best States ------------- Heat Dissipation 28 Energy Generation 14 Energy Capacity 265 Matter Stores 300 Matter Capacity 300 Sight Range 16 Terrain Scan Density 10 ECM Strength 1 Armor Coverage 150 Evasion (%) 40 Recoil Reduction 2 Item Schematics ----------------- None Robot Schematics ------------------ None Fabricated ------------ Nothing Repaired ---------- Nothing Studied --------- None Alien Tech Used ----------------- None Achievements -------------- None Challenges ------------ None Game ------ Seed 7b42dffc-ea75-4f70-ab62-3ec3 Manual? 1 Play Time 00:20:51 Cumulative 24.1 hours Start 2026.07.27 @ 17:38:40 End 2026.07.27 @ 18:04:27 Sessions 1 Manual Loads 0 Difficulty Rogue Special Mode None Game No. 25 Rogue 25 Adventurer 0 Explorer 0 Win Type - Total 0 Types 0/0/0/0/0/0/0/0/0/0 Lore% 5 Gallery% 16 Achievement% 14 Wizard Run 0 Options --------- Layout 1 ASCII 0 Keyboard 0 Movement Mouse Keybinds 0 Fullscreen 2 Font 24/Smallcaps Map View 50x35 Zoom Use 0% Tactical HUD 1 Map Filters NONE Filters NONE Steam 1 RUN: 9d735b29-a186-44cc-8848-014a40a0cf15